bitfinex/quotes_SOLUSD_20240714
["timestamp","ask_amount","ask_price","bid_price","bid_amount"]
[1720955666481,0.2,145.89,145.86,46.37051595]
[1720955672597,0.2,145.89,145.86,45.0]
[1720955672894,0.2,145.89,145.87,1.37067024]
[1720955673390,0.2,145.89,145.84,1.37087143]
[1720955673591,0.2,145.89,145.85,1.3708358]
[1720955673895,0.2,145.89,145.85,21.3708358]
[1720955674188,0.2,145.89,145.86,45.0]
[1720955674395,0.2,145.89,145.87,1.37066432]
[1720955675071,0.2,145.89,145.88,1.37066942]
[1720955675292,0.2,145.89,145.88,46.37066942]
[1720955677591,0.2,145.89,145.88,45.0]
[1720955678379,0.2,145.89,145.88,1.06726388]
[1720955678580,0.2,145.89,145.83,21.3706212]
[1720955678989,0.2,145.89,145.83,37.73908592]
[1720955679597,0.2,145.89,145.84,45.0]
[1720955679780,0.2,145.89,145.85,21.37042787]
[1720955679981,0.2,145.89,145.86,1.37033417]
[1720955680194,0.2,145.89,145.86,46.37033417]
[1720955680496,0.2,145.89,145.87,20.0]
[1720955680697,0.2,145.89,145.88,46.37042958]
[1720955680882,0.2,145.89,145.88,66.37042958]
[1720955681583,0.2,145.89,145.88,65.0]
[1720955686990,6.96139938,145.94,145.88,65.0]
[1720955687192,6.96139938,145.94,145.89,1.36996005]
[1720955687407,6.96139938,145.94,145.9,1.37047214]
[1720955690904,7.64064647,145.94,145.89,1.37047926]
[1720955691086,7.64064647,145.94,145.9,1.37055146]
[1720955691495,6.96139938,145.94,145.9,1.37055146]
[1720955692002,7.64064647,145.94,145.9,1.37055146]
[1720955692191,7.64064647,145.94,145.91,1.37045752]
[1720955692395,6.96139938,145.94,145.89,1.37045752]
[1720955692598,6.96139938,145.94,145.9,1.37049314]
[1720955694285,0.47919938,145.94,145.9,1.37049314]
[1720955696105,0.47919938,145.94,145.88,65.0]
[1720955696310,0.47919938,145.94,145.89,0.45902488]
[1720955696686,1.15844647,145.94,145.89,0.45902488]
[1720955697088,1.15844647,145.94,145.85,0.45902488]
[1720955697322,1.15844647,145.94,145.86,0.5010689]
[1720955697700,1.15844647,145.94,145.87,1.0968055]
[1720955698202,1.15844647,145.94,145.85,1.37063501]
[1720955698409,1.15844647,145.94,145.86,1.3706455]
[1720955698725,6.603,145.93,145.86,1.3706455]
[1720955698931,0.67924709,145.92,145.86,21.3706455]
[1720955699627,7.28224709,145.93,145.86,21.3706455]
[1720955700224,6.603,145.93,145.86,21.3706455]
[1720955700530,6.603,145.93,145.87,45.0]
[1720955700720,6.603,145.93,145.88,21.37063555]
[1720955701928,0.67924709,145.92,145.88,21.37063555]
[1720955702123,7.28224709,145.93,145.89,1.37007185]
[1720955702327,7.28224709,145.93,145.84,1.37007185]
[1720955702529,7.28224709,145.93,145.84,46.37007185]
[1720955702730,7.28224709,145.93,145.85,20.0]
[1720955702918,7.28224709,145.93,145.86,1.36988398]
[1720955703113,6.603,145.93,145.86,46.36988398]
[1720955703338,6.603,145.93,145.87,20.0]
[1720955703514,6.603,145.93,145.88,46.37053538]
[1720955703718,6.603,145.93,145.88,1.37053538]
[1720955704242,0.47919938,145.94,145.88,1.37053538]
[1720955704534,0.47919938,145.94,145.89,1.37032154]
[1720955704718,0.47919938,145.94,145.83,20.0]
[1720955704928,0.47919938,145.94,145.84,45.0]
[1720955705238,0.47919938,145.94,145.85,20.0]
[1720955705439,0.47919938,145.94,145.86,45.0]
[1720955705607,0.47919938,145.94,145.87,20.0]
[1720955705810,0.47919938,145.94,145.88,45.0]
[1720955706005,0.47919938,145.94,145.89,20.0]
[1720955709341,0.47919938,145.94,145.9,45.0]
[1720955710543,0.47919938,145.94,145.91,1.37039312]
[1720955714927,0.47919938,145.94,145.91,1.37039107]
[1720955721865,0.47919938,145.94,145.9,45.0]
[1720955722071,0.47919938,145.94,145.91,1.37036828]
[1720955722239,0.47919938,145.94,145.91,21.37036828]
[1720955742056,0.47919938,145.94,145.92,45.0]
[1720955742267,0.47919938,145.94,145.93,21.37005852]
[1720955742453,0.47919938,145.94,145.93,66.37005852]
[1720955743288,0.47919938,145.94,145.93,65.0]
[1720955743577,0.47919938,145.94,145.84,46.7274]
[1720955743578,0.47919938,145.94,145.86,15.941]
[1720955743785,1.15844647,145.94,145.84,16.0874]
[1720955743990,22.1115,145.93,145.84,16.0874]
[1720955744289,0.67924709,145.92,145.83,1.37086415]
[1720955744474,20.67924709,145.92,145.8,1.37114658]
[1720955744787,65.67924709,145.92,145.79,15.941]
[1720955744957,15.7619,145.88,145.75,15.941]
[1720955745158,65.67924709,145.87,145.76,1.3716842]
[1720955745869,65.67924709,145.87,145.67,49.24120418]
[1720955745870,22.1115,145.86,145.7,412.50946472]
[1720955746085,22.1115,145.84,145.69,15.941]
[1720955746388,0.67924709,145.83,145.69,15.941]
[1720955746687,0.67924709,145.82,145.69,15.941]
[1720955747061,45.67924709,145.82,145.69,15.941]
[1720955747657,45.67924709,145.82,145.7,20.0]
[1720955748089,0.67924709,145.82,145.7,20.0]
[1720955749565,0.67924709,145.82,145.71,45.0]
[1720955749892,0.67924709,145.82,145.72,20.0]
[1720955750064,0.67924709,145.82,145.73,45.0]
[1720955750268,0.67924709,145.82,145.74,20.0]
[1720955755283,0.67924709,145.82,145.75,1.37197223]
[1720955758289,0.67924709,145.82,145.74,20.0]
[1720955762468,0.67924709,145.82,145.75,1.37196904]
[1720955762667,16.2775,145.81,145.69,15.941]
[1720955762903,0.67924709,145.8,145.7,45.0]
[1720955763094,0.67924709,145.79,145.7,45.0]
[1720955763667,0.67924709,145.79,145.71,1.37209115]
[1720955763867,0.67924709,145.79,145.71,21.37209115]
[1720955764090,0.67924709,145.8,145.72,45.0]
[1720955764299,0.67924709,145.8,145.73,1.37190284]
[1720955764494,0.67924709,145.8,145.74,1.3718087]
[1720955765665,0.67924709,145.8,145.75,1.37205935]
[1720955765865,0.67924709,145.8,145.72,45.0]
[1720955766285,0.67924709,145.8,145.73,1.37203694]
[1720955766694,0.67924709,145.8,145.72,45.0]
[1720955767907,0.67924709,145.79,145.72,45.0]
[1720955768914,0.67924709,145.8,145.72,45.0]
[1720955769514,7.11244709,145.79,145.72,45.0]
[1720955770210,7.11244709,145.79,145.73,1.37209036]
[1720955770381,7.11244709,145.79,145.72,45.0]
[1720955770579,0.67924709,145.78,145.72,45.0]
[1720955771310,0.67924709,145.78,145.71,20.0]
[1720955771513,0.67924709,145.78,145.72,45.0]
[1720955771699,0.67924709,145.78,145.71,45.0]
[1720955772022,0.67924709,145.78,145.7,20.0]
[1720955772184,0.67924709,145.78,145.69,15.941]
[1720955772507,0.67924709,145.78,145.7,45.0]
[1720955772712,0.67924709,145.78,145.69,15.941]
[1720955772884,15.8364,145.77,145.65,16.4306]
[1720955773083,0.67924709,145.76,145.65,16.4306]
[1720955773593,0.67924709,145.76,145.66,20.0]
[1720955774192,0.67924709,145.76,145.67,45.0]
[1720955774392,0.67924709,145.76,145.68,20.0]
[1720955774705,0.67924709,145.76,145.69,45.0]
[1720955774892,0.67924709,145.76,145.7,20.0]
[1720955775411,15.8364,145.77,145.71,1.37228301]
[1720955775589,15.8364,145.77,145.71,46.37228301]
[1720955776728,15.8364,145.77,145.72,20.0]
[1720955777013,15.8364,145.77,145.73,1.37208355]
[1720955777213,15.8364,145.77,145.74,1.37208355]
[1720955778095,15.8364,145.77,145.75,1.37208644]
[1720955778302,15.8364,145.77,145.73,1.37201871]
[1720955778500,15.8364,145.77,145.74,1.37202173]
[1720955779613,15.8364,145.77,145.73,1.3720227]
[1720955779815,15.8364,145.77,145.74,1.37202222]
[1720955780810,15.8364,145.77,145.75,1.37202228]
[1720955781017,15.8364,145.77,145.73,1.37202264]
[1720955781312,15.8364,145.77,145.74,1.37202251]
[1720955782219,15.8364,145.77,145.72,20.0]
[1720955783199,15.8364,145.77,145.73,0.46355822]
[1720955783816,15.8364,145.77,145.73,1.37202182]
[1720955784021,6.4332,145.79,145.74,1.37202144]
[1720955784326,16.3228,145.81,145.74,1.37202144]
[1720955784523,16.3228,145.81,145.74,21.37202144]
[1720955786024,0.67924709,145.8,145.74,21.37202144]
[1720955786325,0.67924709,145.8,145.7,16.4752]
[1720955786613,0.67924709,145.8,145.71,45.0]
[1720955786826,45.67924709,145.8,145.71,1.37206698]
[1720955788196,45.67924709,145.8,145.71,21.37206698]
[1720955788591,45.67924709,145.8,145.72,45.0]
[1720955788592,0.67924709,145.8,145.72,45.0]
[1720955788801,0.67924709,145.8,145.73,1.37195908]
[1720955789236,0.67924709,145.8,145.72,45.0]
[1720955790809,6.0457,145.79,145.73,1.24182982]
[1720955791005,0.67924709,145.78,145.67,1.37219415]
[1720955791225,15.0887,145.77,145.66,21.2442]
[1720955791428,0.67924709,145.76,145.66,21.2442]
[1720955792509,0.67924709,145.76,145.67,20.0]
[1720955793018,0.67924709,145.76,145.68,45.0]
[1720955793224,0.67924709,145.76,145.69,20.0]
[1720955794949,0.67924709,145.76,145.63,20.0]
[1720955796125,0.67924709,145.76,145.64,45.0]
[1720955796336,0.67924709,145.76,145.65,20.0]
[1720955796643,0.67924709,145.76,145.66,45.0]
[1720955796842,0.67924709,145.76,145.67,20.0]
[1720955797639,6.0457,145.75,145.67,20.0]
[1720955797849,0.67924709,145.74,145.67,20.0]
[1720955798636,0.67924709,145.74,145.68,1.37258974]
[1720955803945,6.0457,145.75,145.68,1.37258974]
[1720955804147,6.72494709,145.75,145.68,46.37258974]
[1720955804439,6.0457,145.75,145.69,20.0]
[1720955804645,6.0457,145.75,145.7,1.3722683]
[1720955804860,6.0457,145.75,145.71,1.37225348]
[1720955807026,6.0457,145.75,145.72,1.37227924]
[1720955807232,6.0457,145.75,145.7,1.37231993]
[1720955807433,6.0457,145.75,145.71,1.37231829]
[1720955808449,6.0457,145.75,145.7,1.37232734]
[1720955808744,6.0457,145.75,145.71,1.37232885]
[1720955809627,6.0457,145.75,145.7,1.37232891]
[1720955809943,6.0457,145.75,145.71,1.37232852]
[1720955810445,0.67924709,145.74,145.7,1.37232809]
[1720955810626,0.67924709,145.74,145.63,21.37254649]
[1720955810829,0.67924709,145.74,145.64,45.0]
[1720955811029,0.67924709,145.74,145.65,21.37253822]
[1720955811228,0.67924709,145.74,145.66,45.0]
[1720955811429,0.67924709,145.74,145.67,21.37254957]
[1720955811631,0.67924709,145.74,145.68,1.37254852]
[1720955813030,16.2911,145.73,145.62,21.2466]
[1720955813329,6.3831,145.71,145.61,0.2]
[1720955813532,0.67924709,145.7,145.61,0.2]
[1720955814520,0.67924709,145.7,145.61,45.2]
[1720955815431,0.67924709,145.7,145.61,0.2]
[1720955815634,16.2911,145.69,145.61,0.2]
[1720955815828,0.67924709,145.68,145.61,0.2]
[1720955817657,0.67924709,145.68,145.61,21.57303249]
[1720955817852,0.67924709,145.68,145.62,45.0]
[1720955818028,0.67924709,145.68,145.63,1.37284392]
[1720955819256,16.97034709,145.69,145.64,1.37256113]
[1720955819429,16.97034709,145.69,145.61,0.2]
[1720955819635,16.97034709,145.69,145.62,0.34899744]
[1720955820066,16.97034709,145.69,145.62,45.0]
[1720955820352,16.2911,145.69,145.62,45.0]
[1720955820558,16.2911,145.69,145.63,20.0]
[1720955821047,6.3831,145.71,145.64,45.0]
[1720955821243,6.3831,145.71,145.65,20.0]
[1720955821552,16.2911,145.73,145.66,45.0]
[1720955821747,16.2911,145.73,145.67,20.0]
[1720955821948,16.2911,145.73,145.68,45.0]
[1720955822352,16.2911,145.73,145.69,21.37246059]
[1720955822928,15.352,145.77,145.69,21.37246059]
[1720955823129,15.352,145.77,145.7,45.0]
[1720955823345,15.352,145.77,145.71,21.3721609]
[1720955824060,0.67924709,145.76,145.71,21.3721609]
[1720955824242,0.67924709,145.76,145.72,1.37229939]
[1720955824558,15.352,145.77,145.66,1.37229821]
[1720955824732,15.352,145.77,145.66,46.37229821]
[1720955824938,15.352,145.77,145.67,26.3553]
[1720955825248,15.352,145.77,145.68,46.37209884]
[1720955825433,15.352,145.77,145.69,20.0]
[1720955825633,15.352,145.77,145.7,46.37201496]
[1720955825953,15.352,145.77,145.71,20.0]
[1720955826150,15.352,145.77,145.72,46.37202985]
[1720955829360,6.4124,145.79,145.72,46.37202985]
[1720955829551,7.09164709,145.79,145.72,46.37202985]
[1720955831364,15.6416,145.8,145.72,46.37202985]
[1720955833668,0.67924709,145.79,145.72,46.37202985]
[1720955834271,16.32084709,145.8,145.72,46.37202985]
[1720955835163,6.2399,145.82,145.72,46.37202985]
[1720955835364,0.67924709,145.83,145.73,26.501]
[1720955835674,0.67924709,145.83,145.74,46.37163964]
[1720955835853,0.67924709,145.83,145.75,20.0]
[1720955836054,0.67924709,145.83,145.76,46.37163977]
[1720955836253,0.67924709,145.83,145.77,1.37163977]
[1720955837875,0.67924709,145.82,145.77,1.37163977]
[1720955838076,0.67924709,145.82,145.76,1.37175336]
[1720955838380,0.67924709,145.82,145.75,45.0]
[1720955839075,15.6416,145.84,145.75,45.0]
[1720955839657,15.6416,145.84,145.74,20.0]
[1720955839854,45.0,145.83,145.7,15.8786]
[1720955840089,6.2399,145.81,145.71,1.37210473]
[1720955840282,0.67924709,145.8,145.71,1.37210473]
[1720955840586,0.67924709,145.79,145.71,1.37210473]
[1720955841683,0.67924709,145.8,145.71,46.37210473]
[1720955841875,0.67924709,145.8,145.72,20.0]
[1720955842171,0.67924709,145.8,145.73,45.0]
[1720955842375,0.67924709,145.8,145.72,20.0]
[1720955842681,0.67924709,145.8,145.74,1.37200935]
[1720955842868,0.67924709,145.8,145.71,20.0]
[1720955843176,0.67924709,145.8,145.72,45.0]
[1720955843477,0.67924709,145.79,145.71,20.0]
[1720955844691,6.2399,145.81,145.71,20.0]
[1720955845685,0.67924709,145.8,145.71,20.0]
[1720955847754,16.2449,145.79,145.7,15.8786]
[1720955847954,0.67924709,145.78,145.67,15.2074]
[1720955848177,0.67924709,145.78,145.68,45.0]
[1720955849057,0.67924709,145.78,145.69,20.0]
[1720955849670,0.67924709,145.78,145.67,15.2074]
[1720955849870,6.3678,145.77,145.67,15.2074]
[1720955850064,0.67924709,145.76,145.67,15.2074]
[1720955850381,20.67924709,145.76,145.62,21.5364]
[1720955850562,20.67924709,145.76,145.62,404.7364]
[1720955850979,16.2449,145.75,145.62,404.7364]
[1720955851171,0.67924709,145.74,145.62,404.7364]
[1720955851373,0.67924709,145.73,145.62,404.7364]
[1720955852285,0.67924709,145.73,145.63,1.37268597]
[1720955852468,0.67924709,145.74,145.63,1.37268597]
[1720955852673,16.2449,145.75,145.63,1.37268597]
[1720955852674,0.67924709,145.73,145.63,1.37268597]
[1720955852854,0.67924709,145.73,145.63,46.37268597]
[1720955853058,0.67924709,145.73,145.64,20.0]
[1720955853371,0.67924709,145.73,145.65,46.37268391]
[1720955853680,0.67924709,145.74,145.66,20.0]
[1720955853883,0.67924709,145.74,145.67,46.37253588]
[1720955854087,0.67924709,145.74,145.68,1.3724949]
[1720955858697,0.67924709,145.74,145.67,45.0]
[1720955859274,7.04704709,145.73,145.62,398.4074]
[1720955859588,20.0,145.72,145.62,398.4074]
[1720955859791,0.67924709,145.71,145.63,1.37294998]
[1720955860785,0.67924709,145.71,145.63,21.37294998]
[1720955861407,0.67924709,145.71,145.63,20.0]
[1720955861567,0.67924709,145.71,145.64,45.0]
[1720955861887,0.67924709,145.71,145.63,20.0]
[1720955862388,0.67924709,145.7,145.64,1.37291893]
[1720955862580,16.92414709,145.7,145.63,20.0]
[1720955863691,16.92414709,145.7,145.62,383.2]
[1720955863869,16.92414709,145.7,145.63,45.0]
[1720955864502,16.2449,145.7,145.64,1.37285682]
[1720955865392,6.3678,145.73,145.64,21.37285682]
[1720955865587,0.67924709,145.72,145.65,45.0]
[1720955866096,0.67924709,145.72,145.66,1.37273049]
[1720955866396,0.67924709,145.72,145.65,45.0]
[1720955868901,0.67924709,145.72,145.64,20.0]
[1720955869190,0.67924709,145.72,145.65,1.3728007]
[1720955869394,0.67924709,145.72,145.62,1.37271899]
[1720955869780,0.67924709,145.72,145.62,21.37271899]
[1720955869976,0.67924709,145.72,145.63,45.0]
[1720955870176,0.67924709,145.72,145.64,21.37271645]
[1720955870479,7.04704709,145.73,145.65,45.0]
[1720955871000,7.04704709,145.73,145.66,1.37265285]
[1720955873692,7.04704709,145.73,145.65,45.0]
[1720955874717,7.04704709,145.73,145.64,45.0]
[1720955876790,7.04704709,145.73,145.65,1.37259834]
[1720955878492,6.3678,145.73,145.65,1.37259834]
[1720955879291,7.04704709,145.73,145.65,1.37259834]
[1720955879595,7.04704709,145.73,145.64,45.0]
[1720955880522,6.3678,145.73,145.65,1.3725302]
[1720955882624,7.04704709,145.73,145.65,1.3725302]
[1720955882996,7.04704709,145.73,145.64,45.0]
[1720955884417,7.04704709,145.73,145.65,1.37258618]
[1720955884719,7.04704709,145.73,145.64,45.0]
[1720955886810,7.04704709,145.73,145.65,1.372604]
[1720955887590,7.04704709,145.73,145.64,45.0]
[1720955888020,7.04704709,145.73,145.65,1.37260377]
[1720955888211,6.3678,145.73,145.65,1.37260377]
[1720955892420,16.5981,145.74,145.65,1.37242125]
[1720955892596,16.5981,145.74,145.65,21.37242125]
[1720955892791,16.5981,145.74,145.66,45.0]
[1720955893017,16.5981,145.74,145.67,21.3722597]
[1720955893320,16.5981,145.74,145.68,46.3722597]
[1720955893488,16.5981,145.74,145.69,20.0]
[1720955893693,16.5981,145.74,145.7,46.37222199]
[1720955893912,16.5981,145.74,145.7,45.0]
[1720955894114,16.5981,145.74,145.71,1.37223143]
[1720955894813,16.5981,145.74,145.7,45.0]
[1720955895020,16.5981,145.74,145.71,1.37229065]
[1720955896715,16.5981,145.74,145.7,45.0]
[1720955897031,0.67924709,145.73,145.63,22.4825]
[1720955897331,16.5981,145.74,145.64,1.37235579]
[1720955897496,16.5981,145.74,145.65,1.37246053]
[1720955898618,0.67924709,145.73,145.65,1.37246053]
[1720955898816,17.27734709,145.74,145.65,1.37246053]
[1720955899609,16.5981,145.74,145.65,1.37246053]
[1720955899812,0.67924709,145.73,145.64,65.0]
[1720955900102,6.2034,145.72,145.64,65.0]
[1720955901805,6.2034,145.72,145.65,1.3716284]
[1720955907525,6.2034,145.72,145.64,65.0]
[1720955909817,6.2034,145.72,145.65,1.1796515]
[1720955911724,6.2034,145.72,145.64,65.0]
[1720955912021,6.2034,145.72,145.65,1.14725512]
[1720955914624,6.2034,145.72,145.64,65.0]
[1720955915728,16.0276,145.7,145.64,65.0]
[1720955916033,16.0276,145.7,145.64,20.0]
[1720955916445,0.67924709,145.69,145.61,0.2]
[1720955916733,16.0276,145.67,145.61,0.2]
[1720955916936,16.70684709,145.67,145.61,0.2]
[1720955917138,16.0276,145.67,145.61,0.2]
[1720955918634,16.70684709,145.67,145.61,0.2]
[1720955928318,16.659,145.65,145.61,0.2]
[1720955928519,0.67924709,145.64,145.61,0.2]
[1720955936842,16.659,145.65,145.61,0.2]
[1720955939148,16.659,145.69,145.61,0.2]
[1720955939337,17.33824709,145.69,145.61,0.2]
[1720955940326,16.659,145.69,145.61,0.2]
[1720955940531,17.33824709,145.69,145.61,0.2]
[1720955940840,16.659,145.69,145.61,0.2]
[1720955941232,17.33824709,145.69,145.61,0.2]
[1720955941463,16.659,145.69,145.61,0.2]
[1720955942931,6.6215,145.7,145.61,0.2]
[1720955943237,6.6215,145.7,145.62,15.4788]
[1720955943434,6.6215,145.7,145.63,45.0]
[1720955944848,6.6215,145.7,145.64,1.10438751]
[1720955945260,6.6215,145.7,145.63,45.0]
[1720955947159,6.6215,145.7,145.64,1.36864748]
[1720955949255,6.6215,145.7,145.63,45.0]
[1720955951743,0.67924709,145.69,145.63,45.0]
[1720955952159,6.6215,145.7,145.63,45.0]
[1720955952368,6.6215,145.7,145.64,1.37287164]
[1720955952676,6.6215,145.7,145.65,1.37277738]
[1720955955847,6.6215,145.7,145.63,45.0]
[1720955960075,6.6215,145.7,145.64,20.0]
[1720955960276,6.6215,145.7,145.65,45.0]
[1720955964777,0.67924709,145.69,145.64,20.0]
[1720955965070,6.6215,145.7,145.61,20.2]
[1720955965275,6.6215,145.7,145.62,45.0]
[1720955965459,6.6215,145.7,145.63,20.0]
[1720955965654,6.6215,145.7,145.64,45.0]
[1720955968774,6.6215,145.7,145.65,1.37143495]
[1720955973263,15.6961,145.73,145.65,1.37143495]
[1720955973468,15.6961,145.73,145.65,21.37143495]
[1720955973663,15.6961,145.73,145.66,45.0]
[1720955973864,15.6961,145.73,145.67,1.3724511]
[1720955974183,15.6961,145.73,145.68,1.37235689]
[1720955976162,16.6616,145.77,145.68,46.37235689]
[1720955976366,16.6616,145.77,145.69,20.0]
[1720955976579,16.6616,145.77,145.7,46.37211772]
[1720955976877,16.6616,145.77,145.71,21.37202355]
[1720955977191,16.6616,145.77,145.72,45.0]
[1720955977368,16.6616,145.77,145.73,1.37196499]
[1720955977696,16.6616,145.77,145.74,1.37187085]
[1720955978564,16.6616,145.77,145.73,1.37187085]
[1720955978765,16.6616,145.77,145.74,1.37187084]
[1720955979699,16.6616,145.77,145.73,1.37211733]
[1720955979864,16.6616,145.77,145.74,1.37211731]
[1720955981002,16.6616,145.77,145.73,1.3721179]
[1720955981286,16.6616,145.77,145.74,1.37211841]
[1720955982184,16.6616,145.77,145.73,1.37211841]
[1720955982392,16.6616,145.77,145.74,1.37202459]
[1720955983475,16.6616,145.77,145.73,1.37211777]
[1720955983674,16.6616,145.77,145.74,1.37211761]
[1720955984379,35.0,145.88,145.74,1.37211761]
[1720955984380,23.0637,145.86,145.74,1.37211761]
[1720955984687,23.0637,145.86,145.74,46.37211761]
[1720955984688,0.67924709,145.85,145.74,46.37211761]
[1720955985268,16.5464,145.84,145.74,46.37211761]
[1720955985470,0.67924709,145.83,145.74,46.37211761]
[1720955985697,0.67924709,145.82,145.74,46.37211761]
[1720955987684,0.67924709,145.83,145.75,15.0444]
[1720955987876,0.67924709,145.83,145.76,46.37166378]
[1720955988195,0.67924709,145.83,145.77,1.37156968]
[1720955989811,0.67924709,145.83,145.76,45.0]
[1720955993403,0.67924709,145.83,145.77,1.37165947]
[1720955994085,0.67924709,145.83,145.76,45.0]
[1720955997605,0.67924709,145.83,145.77,1.37165695]
[1720956000203,0.67924709,145.83,145.76,45.0]
[1720956002489,0.67924709,145.83,145.73,20.0]
[1720956003615,0.67924709,145.83,145.72,15.106]
[1720956003791,65.67924709,145.83,145.72,15.106]
[1720956004286,65.67924709,145.83,145.73,1.37207939]
[1720956004478,65.67924709,145.83,145.74,1.37198524]
[1720956005016,65.67924709,145.83,145.72,15.106]
[1720956005017,65.67924709,145.83,145.75,1.3720803]
[1720956005315,20.67924709,145.83,145.75,1.3720803]
[1720956005511,0.67924709,145.83,145.75,1.3720803]
[1720956005683,0.67924709,145.83,145.75,46.3720803]
[1720956007408,16.5464,145.84,145.75,53.0293803]
[1720956007911,0.67924709,145.85,145.75,53.0293803]
[1720956008106,20.67924709,145.85,145.75,53.0293803]
[1720956009113,20.67924709,145.85,145.75,51.6573]
[1720956010591,20.67924709,145.85,145.76,1.37154985]
[1720956011710,20.67924709,145.85,145.75,51.6573]
[1720956011911,20.67924709,145.85,145.76,1.37155063]
[1720956013123,20.67924709,145.85,145.75,51.6573]
[1720956024620,0.67924709,145.85,145.75,51.6573]
[1720956024921,0.67924709,145.85,145.76,20.0]
[1720956025120,7.19654709,145.86,145.77,45.0]
[1720956025308,0.67924709,145.85,145.78,20.0]
[1720956025509,0.67924709,145.85,145.79,45.0]
[1720956026620,0.67924709,145.85,145.8,1.37141211]
[1720956027503,0.67924709,145.85,145.78,20.0]
[1720956027728,0.67924709,145.85,145.76,20.0]
[1720956027919,0.67924709,145.85,145.76,65.0]
[1720956028224,0.67924709,145.85,145.77,1.37141174]
[1720956029516,0.67924709,145.85,145.76,65.0]
[1720956030216,15.6438,145.84,145.72,15.106]
[1720956030418,0.67924709,145.85,145.7,16.3668]
[1720956030419,27.33204709,145.83,145.7,16.3668]
[1720956030624,16.32304709,145.82,145.7,16.3668]
[1720956030814,20.0,145.81,145.7,16.3668]
[1720956031014,0.67924709,145.8,145.68,16.6335]
[1720956032301,0.67924709,145.8,145.69,45.0]
[1720956032501,0.67924709,145.8,145.7,20.0]
[1720956032716,0.67924709,145.8,145.71,45.0]
[1720956032923,0.67924709,145.8,145.72,20.0]
[1720956033222,0.67924709,145.8,145.73,45.0]
[1720956034309,15.6438,145.77,145.68,16.6335]
[1720956034629,0.67924709,145.76,145.68,16.6335]
[1720956035516,0.67924709,145.76,145.69,65.0]
[1720956036025,16.32304709,145.77,145.69,65.0]
[1720956038329,0.67924709,145.76,145.69,65.0]
[1720956040131,0.67924709,145.76,145.69,45.0]
[1720956043618,16.32304709,145.77,145.7,1.37233901]
[1720956047409,15.6438,145.77,145.7,1.37233901]
[1720956047617,15.6438,145.77,145.7,21.37233901]
[1720956047828,15.6438,145.77,145.71,45.0]
[1720956048027,22.7122,145.83,145.72,1.37200071]
[1720956048344,0.67924709,145.82,145.72,1.37200071]
[1720956049559,20.67924709,145.82,145.72,1.37200071]
[1720956051417,20.67924709,145.82,145.71,45.0]
[1720956052143,16.3988,145.81,145.71,45.0]
[1720956052343,20.67924709,145.8,145.71,45.0]
[1720956052538,0.67924709,145.79,145.71,45.0]
[1720956053221,6.3134,145.78,145.72,1.37215858]
[1720956053421,16.3988,145.76,145.72,1.37215858]
[1720956053622,16.3988,145.76,145.67,1.37222007]
[1720956053840,16.3988,145.76,145.68,1.37220368]
[1720956054048,16.3988,145.76,145.68,21.37220368]
[1720956054224,16.3988,145.76,145.69,45.0]
[1720956054428,16.3988,145.76,145.7,21.37217952]
[1720956054623,16.3988,145.76,145.71,46.37212488]
[1720956056649,16.3988,145.76,145.7,20.0]
[1720956056953,16.3988,145.76,145.66,20.0]
[1720956057130,16.3988,145.76,145.67,45.0]
[1720956057324,16.3988,145.76,145.68,20.0]
[1720956057528,16.3988,145.76,145.69,45.0]
[1720956057849,16.3988,145.76,145.7,20.0]
[1720956058038,16.3988,145.76,145.71,45.0]
[1720956058238,16.3988,145.76,145.7,20.0]
[1720956058442,16.3988,145.76,145.66,20.0]
[1720956058646,16.3988,145.76,145.67,46.37235224]
[1720956058647,0.67924709,145.75,145.67,46.37235224]
[1720956058835,0.67924709,145.75,145.68,20.0]
[1720956059072,0.67924709,145.75,145.69,45.0]
[1720956059374,17.07804709,145.76,145.7,1.3723344]